bitfinex-derivatives/quotes_ETHF0:USTF0_20251213
["timestamp","ask_amount","ask_price","bid_price","bid_amount"]
[1765644987433,14.8278,3106.3,3106.2,1.4414]
[1765644987830,15.5713,3106.3,3106.2,1.4414]
[1765644988734,16.3418,3106.3,3106.2,1.4414]
[1765644994543,16.3418,3106.3,3106.2,0.702]
[1765644995540,1.514,3106.1,3106.0,1.8750792]
[1765644997346,18.8803,3106.3,3106.2,1.4414]
[1765644997644,19.6508,3106.3,3106.2,1.4414]
[1765645000546,18.8803,3106.3,3106.2,1.4414]
[1765645003946,15.6725,3106.3,3106.2,1.4414]
[1765645005147,16.443,3106.3,3106.2,1.4414]
[1765645005536,16.443,3106.3,3106.2,0.702]
[1765645005742,1.514,3106.1,3106.0,1.8750792]
[1765645010958,0.7435,3106.1,3106.0,1.8750792]
[1765645014458,1.514,3106.1,3106.0,1.8750792]
[1765645015957,0.7435,3106.1,3106.0,1.8750792]
[1765645017363,1.4869,3106.1,3106.0,1.8750792]
[1765645021564,0.7435,3106.1,3106.0,1.8750792]
[1765645024164,1.4581,3106.1,3106.0,0.4336792]
[1765645024359,1.4581,3106.1,3105.2,3.2078]
[1765645024360,1.4581,3105.3,3105.2,3.2078]
[1765645024864,1.4581,3105.3,3105.0,0.4434]
[1765645024865,1.4581,3105.1,3105.0,0.4434]
[1765645025066,1.4581,3104.9,3104.8,3.9054]
[1765645025368,1.4581,3104.9,3104.0,6.19791102]
[1765645025369,1.6993,3104.5,3104.4,3.2078]
[1765645025561,4.9071,3104.5,3104.4,0.00248775]
[1765645026154,1.4581,3103.7,3103.6,3.2078]
[1765645026366,1.4581,3103.2,3103.1,3.9054]
[1765645026769,1.4581,3103.2,3103.1,4.6609]
[1765645027268,0.00407686,3103.2,3103.1,4.66346384]
[1765645028568,3.2078,3104.6,3104.0,1.9027]
[1765645028757,11.4901,3104.5,3104.4,0.6976]
[1765645028964,11.4901,3104.5,3104.4,1.4531]
[1765645029261,11.4901,3104.5,3104.4,0.6976]
[1765645029462,11.49289388,3104.5,3104.4,0.6976]
[1765645029662,11.49289388,3104.5,3104.4,1.4531]
[1765645030170,11.49289388,3104.5,3104.4,0.6976]
[1765645030973,1.46089388,3104.5,3104.4,1.4531]
[1765645031167,4.26489388,3104.5,3104.4,1.4531]
[1765645031466,4.26489388,3104.5,3104.4,0.6976]
[1765645031769,4.26489388,3104.5,3104.4,1.4531]
[1765645031972,4.26489388,3104.5,3104.4,0.6976]
[1765645037675,3.52149388,3104.5,3104.4,1.4531]
[1765645038179,4.26489388,3104.5,3104.4,1.4531]
[1765645038770,0.00279388,3104.5,3104.4,1.4531]
[1765645039175,0.71749388,3104.5,3104.4,1.4531]
[1765645042177,1.46089388,3104.5,3104.4,1.4531]
[1765645048487,1.46089388,3104.5,3104.4,0.6976]
[1765645049587,1.46089388,3104.5,3104.2,4.6788]
[1765645049588,1.4381,3104.3,3104.2,4.6788]
[1765645050079,0.7043,3104.3,3104.2,4.6788]
[1765645050275,0.00279388,3104.5,3104.4,1.471]
[1765645050478,0.70709388,3104.5,3104.4,1.471]
[1765645050879,1.44089388,3104.5,3104.4,1.471]
[1765645053086,0.70709388,3104.5,3104.4,1.471]
[1765645053686,0.00279388,3104.5,3104.4,1.471]
[1765645054689,0.7043,3104.3,3104.2,4.6788]
[1765645054991,0.00279388,3104.5,3104.4,1.471]
[1765645055385,0.00483146,3104.8,3104.7,1.471]
[1765645055786,3.9121,3105.4,3105.3,0.7135]
[1765645055985,3.9121,3105.4,3105.3,1.471]
[1765645055986,0.7043,3105.4,3105.3,1.471]
[1765645056186,1.4381,3105.2,3105.1,3.9213]
[1765645056489,1.44181683,3105.2,3105.1,3.92431388]
[1765645056695,1.44181683,3105.2,3105.1,4.68181388]
[1765645057594,0.70801683,3105.2,3105.1,4.68181388]
[1765645059596,0.00371683,3105.2,3105.1,4.68181388]
[1765645060094,0.70801683,3105.2,3105.1,4.68181388]
[1765645061298,1.44181683,3105.2,3105.1,4.68181388]
[1765645061993,1.44181683,3105.2,3105.1,3.21081388]
[1765645064601,1.44181683,3105.2,3105.1,0.00301388]
[1765645065200,1.44181683,3105.2,3105.1,0.71651388]
[1765645065992,1.44181683,3105.2,3105.1,0.00301388]
[1765645068594,1.44181683,3105.2,3105.1,0.71651388]
[1765645071701,1.44181683,3105.2,3105.1,1.47401388]
[1765645072202,1.44181683,3105.2,3105.1,0.71651388]
[1765645075509,0.70801683,3105.2,3105.1,1.47401388]
[1765645076211,1.43671683,3105.2,3105.1,1.47401388]
[1765645076506,0.70801683,3105.2,3105.1,1.47401388]
[1765645077311,1.43671683,3105.2,3105.1,1.47401388]
[1765645079609,0.70801683,3105.2,3105.1,1.47401388]
[1765645080211,1.43671683,3105.2,3105.1,1.47401388]
[1765645080710,1.43671683,3105.2,3105.1,0.71651388]
[1765645080910,1.43671683,3105.2,3105.1,0.00301388]
[1765645090517,1.43671683,3105.2,3105.1,0.70141388]
[1765645091123,0.70801683,3105.2,3105.1,1.41511388]
[1765645091616,1.43671683,3105.2,3105.1,1.41511388]
[1765645102436,1.43671683,3105.2,3105.1,0.00301388]
[1765645102935,1.43671683,3105.2,3105.1,0.70141388]
[1765645103931,15.10401683,3105.2,3105.1,1.41511388]
[1765645104729,15.83271683,3105.2,3105.1,1.41511388]
[1765645105336,0.70801683,3105.2,3105.1,1.41511388]
[1765645105633,0.00371683,3105.2,3105.1,1.41511388]
[1765645108226,0.75551683,3105.2,3105.1,1.41511388]
[1765645109840,1.46141683,3105.2,3105.1,1.41511388]
[1765645110035,1.46141683,3105.2,3105.1,1.43481388]
[1765645110237,1.46141683,3105.2,3105.1,0.70141388]
[1765645110430,1.46141683,3105.2,3105.1,1.43481388]
[1765645110631,1.46141683,3105.2,3105.1,0.00301388]
[1765645111137,1.46141683,3105.2,3105.1,1.50531388]
[1765645112640,0.75551683,3105.2,3105.1,1.50531388]
[1765645113645,1.46141683,3105.2,3105.1,1.50531388]
[1765645113843,0.00371683,3105.2,3105.1,1.50531388]
[1765645114047,0.74541683,3105.2,3105.1,1.50531388]
[1765645115842,0.00371683,3105.2,3105.1,1.50531388]
[1765645119446,1.45131683,3105.2,3105.1,0.00301388]
[1765645119750,1.45131683,3105.2,3105.1,0.77191388]
[1765645119940,1.45131683,3105.2,3105.1,1.50531388]
[1765645121352,0.74541683,3105.2,3105.1,1.50531388]
[1765645121546,0.00371683,3105.2,3105.1,1.50531388]
[1765645129163,1.45131683,3105.2,3105.1,1.50531388]
[1765645129347,0.00371683,3105.2,3105.1,1.50531388]
[1765645138755,0.00371683,3105.2,3105.1,4.71311388]
[1765645139262,0.00371683,3105.2,3105.1,4.97229738]
[1765645140163,0.00371683,3105.2,3105.1,4.71311388]
[1765645147861,0.00371683,3105.2,3105.1,1.50531388]
[1765645148062,0.00371683,3105.2,3105.1,4.71311388]
[1765645149069,0.00371683,3105.2,3105.1,1.50531388]
[1765645149463,0.00371683,3105.2,3105.1,4.71311388]
[1765645152070,0.00371683,3105.2,3105.1,1.50531388]
[1765645152473,0.00371683,3105.2,3105.1,4.71311388]
[1765645156375,0.00371683,3105.2,3105.1,1.50531388]
[1765645156673,0.00371683,3105.2,3105.1,4.71311388]
[1765645156874,0.00371683,3105.2,3105.1,1.50531388]
[1765645157077,0.00371683,3105.2,3105.1,4.71311388]
[1765645158372,1.43451683,3105.2,3105.1,4.72941388]
[1765645158671,0.72091683,3105.2,3105.1,4.72941388]
[1765645158876,0.00371683,3105.2,3105.1,4.72941388]
[1765645169789,0.00371683,3105.2,3105.1,1.52161388]
[1765645178907,0.73761683,3105.2,3105.1,1.52161388]
[1765645179100,0.00371683,3105.2,3105.1,1.52161388]
[1765645183100,0.73761683,3105.2,3105.1,1.52161388]
[1765645183302,0.00371683,3105.2,3105.1,1.52161388]
[1765645183599,1.50701683,3105.2,3105.1,1.52161388]
[1765645183902,4.71481683,3105.2,3105.1,1.44991388]
[1765645184295,3.94541683,3105.2,3105.1,1.44991388]
[1765645184995,4.71481683,3105.2,3105.1,1.44991388]
[1765645185402,3.94541683,3105.2,3105.1,1.44991388]
[1765645185802,0.73761683,3105.2,3105.1,1.44991388]
[1765645189104,0.00371683,3105.2,3105.1,1.44991388]
[1765645197816,0.75981683,3105.2,3105.1,1.44991388]
[1765645198201,0.00371683,3105.2,3105.1,1.44991388]
[1765645201613,1.47241683,3105.2,3105.1,1.44991388]
[1765645202013,1.4687,3104.6,3104.5,0.4282]
[1765645202416,1.4687,3104.6,3104.5,1.1493]
[1765645202715,1.4687,3104.5,3104.4,3.93373146]
[1765645202917,1.4687,3104.5,3104.4,4.64973146]
[1765645203116,1.4687,3104.5,3104.4,4.65202744]
[1765645205825,3.2078,3105.1,3104.5,0.4504]
[1765645206216,4.6765,3105.1,3105.0,0.7211]
[1765645206622,3.9639,3105.1,3105.0,1.8875]
[1765645206820,10.6109,3105.1,3105.0,1.8875]
[1765645208118,3.2078,3105.1,3105.0,1.8875]
[1765645208522,3.9639,3105.1,3105.0,1.8875]
[1765645210524,14.03971683,3105.2,3105.1,1.4371]
[1765645210525,14.93471683,3105.2,3105.1,1.4371]
[1765645210922,15.69081683,3105.2,3105.1,1.4371]
[1765645211522,16.40341683,3105.2,3105.1,1.4371]
[1765645226839,1.4703,3105.1,3105.0,1.1618]
[1765645227334,0.00371683,3105.2,3104.6,4.6792]
[1765645227541,16.40291683,3105.2,3105.1,0.6995]
[1765645227935,16.40291683,3105.2,3104.6,3.2078]
[1765645228530,16.40291683,3105.2,3105.1,0.6995]
[1765645228730,16.40291683,3105.2,3105.1,1.4714]
[1765645230340,0.00371683,3105.2,3105.1,1.4714]
[1765645235236,1.47191683,3105.2,3105.1,0.6995]
[1765645235641,1.47191683,3105.2,3105.1,1.4714]
[1765645236246,1.4682,3105.1,3105.0,3.6327]
[1765645236645,1.4682,3105.1,3105.0,4.3322]
[1765645237044,1.4682,3105.1,3105.0,5.1041]
[1765645237245,0.7305,3105.1,3105.0,5.1041]
[1765645238057,4.04971683,3105.2,3105.1,1.4714]
[1765645238853,4.78021683,3105.2,3105.1,1.4714]
[1765645239559,5.51791683,3105.2,3105.1,1.4714]
[1765645241367,1.4682,3105.1,3105.0,3.6327]
[1765645241556,1.4682,3105.1,3105.0,4.3322]
[1765645241756,1.4682,3105.1,3105.0,5.1041]
[1765645242965,0.7305,3105.1,3105.0,5.1041]
[1765645247954,1.4682,3105.1,3105.0,5.1041]
[1765645250968,1.4682,3105.1,3105.0,1.8963]
[1765645252568,0.7305,3105.1,3105.0,1.8963]
[1765645253962,4.78021683,3105.2,3105.1,1.4714]
[1765645256067,5.52411683,3105.2,3105.1,1.4714]
[1765645260571,5.52411683,3105.2,3105.1,0.6995]
[1765645260770,1.4882,3105.1,3105.0,1.8682]
[1765645262864,1.4882,3104.9,3104.8,3.9125]
[1765645263464,1.4882,3104.9,3104.8,4.6511]
[1765645263770,0.7443,3104.9,3104.8,4.6511]
[1765645265271,1.4882,3104.9,3104.8,4.6511]
[1765645266861,1.4882,3104.9,3104.8,3.9125]
[1765645267065,1.4882,3104.6,3104.5,1.8937]
[1765645267466,0.7443,3104.6,3104.5,1.8937]
[1765645268366,7.25751683,3105.2,3104.5,1.8937]
[1765645271177,4.647,3105.1,3104.5,1.8937]
[1765645272868,13.104,3105.0,3104.9,0.7047]
[1765645273073,14.5922,3105.0,3104.9,0.7047]
[1765645275178,14.5922,3105.0,3104.9,1.4433]
[1765645276467,1.4882,3105.0,3104.9,1.4433]
[1765645276673,16.4182,3105.0,3104.9,1.4433]
[1765645278279,1.4882,3105.0,3104.9,1.4433]
[1765645278479,16.4182,3105.0,3104.9,1.4433]
[1765645280179,1.4882,3105.0,3104.9,1.4433]
[1765645280385,16.4182,3105.0,3104.9,1.4433]
[1765645280585,1.4882,3105.0,3104.9,1.4433]
[1765645280883,16.4182,3105.0,3104.9,1.4433]
[1765645287185,16.4182,3105.0,3104.9,0.7047]
[1765645288680,0.7251,3104.6,3104.5,1.9257]
[1765645289386,1.4516,3104.6,3104.5,1.9257]
[1765645291192,0.7251,3104.6,3104.5,1.9257]
[1765645291993,1.4516,3104.6,3104.5,1.9257]
[1765645294194,1.4516,3104.6,3104.5,5.1335]
[1765645297698,1.4516,3104.6,3104.5,1.9257]
[1765645302500,1.4516,3104.6,3104.5,1.1555]
[1765645302705,1.4516,3104.6,3104.5,0.4504]
[1765645302902,1.4516,3104.6,3104.5,1.1555]
[1765645303203,1.4516,3104.6,3104.5,1.9257]
[1765645305907,1.4516,3104.6,3104.5,1.1555]
[1765645306108,1.4516,3104.6,3104.5,0.4504]
[1765645306410,1.4516,3104.6,3104.5,1.1555]
[1765645306708,1.4516,3104.6,3104.5,0.4504]
[1765645306905,1.4516,3104.5,3104.4,3.21492744]
[1765645307105,1.4516,3104.5,3104.4,4.69022744]
[1765645316809,1.4516,3104.5,3104.4,1.48242744]
[1765645317213,0.7251,3104.5,3104.4,1.48242744]
[1765645317914,1.4323,3104.5,3104.4,1.48242744]
[1765645322611,0.7251,3104.5,3104.4,1.48242744]
[1765645324328,1.4323,3104.5,3104.4,1.48242744]
[1765645355144,1.4323,3104.5,3104.4,0.71222744]
[1765645355339,1.6737,3104.5,3104.4,0.00712744]
[1765645355644,1.4323,3104.5,3104.4,0.70732744]
[1765645358150,1.4323,3104.5,3104.4,0.00712744]
[1765645362255,1.4323,3104.5,3104.4,0.70732744]
[1765645362651,1.4323,3104.5,3104.4,0.00712744]
[1765645365552,1.6737,3104.5,3104.4,0.00712744]
[1765645365755,4.8815,3104.5,3104.4,0.00712744]
[1765645372060,1.6737,3104.5,3104.4,0.00712744]
[1765645372257,4.8815,3104.5,3104.4,0.00712744]
[1765645384558,4.6401,3104.5,3104.4,0.70962744]
[1765645384863,4.7161,3104.9,3104.8,1.4449]
[1765645385059,8.9081,3104.9,3104.8,1.4449]
[1765645385253,9.88156022,3104.9,3104.8,1.4449]
[1765645385654,8.9081,3104.9,3104.8,1.4449]
[1765645386863,4.7161,3104.9,3104.8,1.4449]
[1765645387065,19.6471,3104.9,3104.8,1.4449]
[1765645387963,16.4393,3104.9,3104.8,1.4449]
[1765645388565,16.4393,3104.9,3104.8,0.7025]
[1765645389267,0.7557,3104.6,3104.5,1.8771]
[1765645394269,1.5083,3104.6,3104.5,1.1347]
[1765645394669,1.5083,3104.6,3104.5,1.8771]
[1765645394869,1.5083,3104.5,3104.4,0.70962744]
[1765645395173,1.5083,3104.5,3104.4,0.00712744]
[1765645395671,1.5083,3104.5,3104.4,0.70962744]
[1765645396972,1.5083,3104.5,3104.4,1.45202744]
[1765645397163,1.5083,3104.5,3104.4,0.70962744]
[1765645397369,1.5083,3104.5,3104.4,1.45202744]
[1765645409778,1.5083,3104.5,3104.4,0.00712744]
[1765645410078,1.7515,3104.5,3104.4,0.00712744]
[1765645410379,1.5083,3104.5,3104.4,0.00712744]
[1765645419093,1.7515,3104.5,3104.4,0.00712744]
[1765645420989,1.7515,3104.5,3103.7,3.2078]
[1765645420990,1.4032,3103.8,3103.7,3.2078]
[1765645421188,16.3322,3103.8,3103.7,3.2078]
[1765645421894,16.3322,3103.8,3103.7,3.21028296]
[1765645422894,16.3322,3103.8,3103.7,0.00248296]
[1765645422895,19.54,3103.8,3103.7,0.00248296]
[1765645428101,1.7276,3103.5,3103.4,0.00483146]
[1765645429001,1.7276,3103.5,3103.4,0.00818827]
[1765645429403,0.6988,3102.6,3102.5,1.8568]
[1765645429906,12.7092,3102.8,3102.7,1.4246]
[1765645430501,12.71232247,3102.8,3102.7,1.4275467]
[1765645432008,12.71232247,3102.8,3102.7,0.0029467]
[1765645432610,12.71232247,3102.8,3102.7,0.7259467]
[1765645432908,12.71232247,3102.8,3102.7,0.0029467]
[1765645439208,0.00312247,3102.8,3102.7,1.4583467]
[1765645439416,14.93812247,3102.8,3102.7,1.4583467]
[1765645439615,15.66942247,3102.8,3102.7,1.4583467]
[1765645440315,16.41962247,3102.8,3102.7,0.0029467]
[1765645448217,1.7218,3102.5,3102.4,0.00483146]
[1765645448407,1.4815,3102.5,3102.4,0.00483146]
[1765645449218,1.4815,3102.5,3102.4,0.00837902]
[1765645449519,11.6925,3102.5,3102.4,1.46377902]
[1765645449919,11.6925,3102.5,3102.4,0.00837902]
[1765645450115,11.9328,3102.5,3102.4,0.00837902]
[1765645452315,16.4185,3102.5,3102.4,0.00837902]
[1765645452621,16.6588,3102.5,3102.4,0.00837902]
[1765645454017,1.4815,3101.6,3101.5,5.1186]
[1765645454224,16.4195,3101.6,3101.5,5.1186]
[1765645454724,16.4195,3101.6,3101.5,4.4115]
[1765645455119,16.4195,3101.6,3101.5,4.41564727]
[1765645456925,16.4195,3101.6,3101.5,5.12274727]
[1765645457621,16.4195,3101.6,3101.5,1.91494727]
[1765645459227,0.00483146,3101.9,3101.8,1.4554]
[1765645459525,10.65713146,3101.9,3101.8,1.4554]
[1765645459925,11.40733146,3101.9,3101.8,1.4554]
[1765645460421,11.40733146,3101.9,3101.8,0.7483]
[1765645460622,1.4815,3101.6,3101.5,1.91494727]
[1765645463125,3.4123,3101.8,3101.7,1.4554]
[1765645463323,4.1625,3101.8,3101.7,1.4554]
[1765645463528,4.1625,3101.8,3101.7,0.7483]
[1765645464431,1.4815,3101.6,3101.5,1.91494727]
[1765645465031,1.4815,3101.6,3101.5,0.45954727]
[1765645465223,1.4815,3101.6,3101.5,0.00414727]
[1765645466827,1.4815,3101.6,3101.5,0.74824727]
[1765645467028,1.4815,3101.6,3101.5,0.00414727]
[1765645469438,4.6893,3101.6,3101.5,0.00414727]
[1765645470930,1.4874,3101.3,3101.2,0.00483146]
[1765645471826,1.4874,3101.3,3101.2,0.00788685]
[1765645472031,6.3214,3101.3,3101.2,0.00788685]
[1765645472226,16.3944,3101.3,3101.2,0.00788685]
[1765645474432,0.7461,3101.3,3101.2,1.51968685]
[1765645474638,4.6952,3101.6,3101.5,1.9753]
[1765645474834,18.0722,3101.6,3101.5,1.9753]
[1765645475535,14.8644,3101.6,3101.5,1.9753]
[1765645476334,14.8644,3101.6,3101.5,1.2189]
[1765645476532,0.75093146,3101.9,3101.8,1.5118]
[1765645477039,1.4874,3101.6,3101.5,1.9753]
[1765645477234,1.4874,3101.5,3101.4,3.2078]
[1765645477832,1.4874,3101.5,3101.4,3.9632]
[1765645479341,1.4874,3101.5,3101.4,4.7196]
[1765645480240,0.7461,3101.5,3101.4,4.7196]
[1765645480539,1.4874,3101.5,3101.4,4.7196]
[1765645481338,0.7461,3101.5,3101.4,4.7196]
[1765645481740,1.49223146,3101.9,3101.8,1.5118]
[1765645481939,0.75093146,3101.9,3101.8,1.5118]
[1765645482541,1.49223146,3101.9,3101.8,1.5118]
[1765645484543,0.75093146,3101.9,3101.8,1.5118]
[1765645485843,0.00483146,3101.9,3101.8,1.5118]
[1765645486440,0.75093146,3101.9,3101.8,1.5118]
[1765645487141,0.7461,3101.6,3101.5,1.9753]
[1765645489658,1.49223146,3101.9,3101.8,0.7554]
[1765645489946,1.49223146,3101.9,3101.5,0.4635]
[1765645489947,1.4874,3101.5,3101.4,4.7196]
[1765645490340,0.7461,3101.5,3101.4,4.7196]
[1765645491444,1.4874,3101.3,3101.2,0.76328685]
[1765645494950,0.7461,3101.3,3101.2,1.51968685]
[1765645495151,1.5007,3101.3,3101.2,1.51968685]
[1765645496153,0.7461,3101.3,3101.2,1.51968685]
[1765645496355,4.7211,3101.6,3101.5,1.9235]
[1765645496547,19.3231,3101.6,3101.5,1.9235]
[1765645498649,4.7211,3101.6,3101.5,1.9235]
[1765645498856,7.5305,3101.6,3101.5,1.9235]
[1765645499154,6.7718,3101.6,3101.5,1.9235]
[1765645499954,7.5305,3101.6,3101.5,1.9235]
[1765645500953,3.9665,3101.6,3101.5,1.9235]
[1765645501756,4.7211,3101.6,3101.5,1.9235]
[1765645502354,4.7211,3101.6,3101.5,1.1792]
[1765645502747,4.7211,3101.6,3101.5,0.4611]
[1765645503049,4.7211,3101.6,3101.5,1.1792]
[1765645503452,4.7211,3101.6,3101.5,1.9235]
[1765645503753,18.9185,3101.6,3101.5,1.9235]
[1765645504056,19.6731,3101.6,3101.5,1.9235]
[1765645505855,3.2078,3101.6,3101.5,1.9235]
[1765645506454,3.9665,3101.6,3101.5,1.9235]
[1765645507358,4.7211,3101.6,3101.5,1.9235]
[1765645508659,4.7211,3101.6,3101.5,1.1792]
[1765645509158,1.5133,3101.3,3101.2,1.47028685]
[1765645509357,1.5133,3101.3,3101.2,0.72598685]
[1765645509552,1.5133,3101.3,3101.2,1.47028685]
[1765645511359,3.2078,3101.6,3101.2,0.75218685]
[1765645511661,3.2078,3101.6,3101.5,1.1792]
[1765645511662,4.7211,3101.6,3101.5,1.1792]
[1765645513061,4.7211,3101.6,3101.5,1.9235]
[1765645515759,3.9665,3101.6,3101.5,1.9235]
[1765645515962,7.1735,3101.6,3101.5,1.9235]
[1765645516665,3.2078,3101.6,3101.5,1.9235]
[1765645517659,3.9665,3101.6,3101.5,1.9235]
[1765645518769,4.7211,3101.6,3101.5,1.9235]
[1765645519567,3.9665,3101.6,3101.5,1.9235]
[1765645521863,4.7211,3101.6,3101.5,1.9235]
[1765645522062,1.5133,3101.6,3101.5,1.9235]
[1765645523066,0.7587,3101.6,3101.5,1.9235]
[1765645524266,1.5133,3101.3,3101.2,1.47028685]
[1765645524570,5.8918,3101.8,3101.2,1.47028685]
[1765645529965,3.2078,3101.8,3101.2,1.47028685]
[1765645530166,7.3534929,3101.8,3101.2,1.47028685]
[1765645530368,6.3778,3101.8,3101.2,1.47028685]
[1765645530666,0.7397,3101.3,3101.2,1.47028685]
[1765645530862,1.4961,3101.3,3101.2,1.47028685]
[1765645533675,0.7397,3101.3,3101.2,1.47028685]
[1765645537778,1.4961,3101.3,3101.2,1.47028685]
[1765645541180,0.7397,3101.3,3101.2,1.47028685]
[1765645541375,4.7039,3101.8,3101.7,0.7268]
[1765645541578,11.58567571,3101.8,3101.7,0.7268]
[1765645542483,5.67967571,3101.8,3101.7,0.7268]
[1765645542682,11.0739,3101.8,3101.7,0.7268]
[1765645543185,12.04967412,3101.8,3101.7,0.7268]
[1765645543380,20.62667412,3101.8,3101.7,1.4925]
[1765645544482,20.62667412,3101.8,3101.7,0.7268]
[1765645545383,5.67967412,3101.8,3101.7,1.4925]
[1765645545681,9.8689,3101.8,3101.7,1.4925]
[1765645546783,1.4961,3101.6,3101.5,1.1535]
[1765645547384,1.4961,3101.6,3101.5,1.9192]
[1765645548392,1.4961,3101.6,3101.2,0.00788685]
[1765645548393,8.3728,3101.8,3101.2,1.50038685]
[1765645549781,4.7039,3101.8,3101.7,0.7268]
[1765645551086,4.7039,3101.8,3101.7,1.4925]
[1765645555087,1.4961,3101.8,3101.7,1.4925]
[1765645555288,0.7397,3101.8,3101.7,1.4925]
[1765645555785,1.4818,3101.8,3101.7,1.4925]
[1765645561590,1.4513,3101.5,3101.4,3.2078]
[1765645561795,1.4513,3101.3,3101.2,0.77298685]
[1765645561992,1.4513,3101.3,3101.2,0.00788685]
[1765645562299,1.4513,3101.3,3101.2,0.77298685]
[1765645562485,1.4513,3101.3,3101.2,0.00788685]
[1765645570307,0.7092,3100.2,3100.1,1.5092]
[1765645570608,1.4513,3100.1,3100.0,4.4283]
[1765645570805,0.7092,3100.1,3100.0,5.1724]
[1765645571011,11.387,3100.5,3100.0,5.1724]
[1765645571204,0.7092,3100.1,3100.0,5.1724]
[1765645571403,0.7092,3100.1,3100.0,5.17569037]
[1765645571404,1.45439363,3100.1,3100.0,5.17569037]
[1765645574106,1.45439363,3100.1,3100.0,3.66649037]
[1765645574304,1.4513,3099.6,3099.5,1.2073]
[1765645574612,0.7421,3099.2,3099.1,1.77216946]
[1765645574815,1.4513,3099.2,3099.1,1.77216946]
[1765645575112,3.2078,3099.7,3099.1,1.77216946]
[1765645575410,3.9218394,3099.7,3099.6,1.5092]
[1765645575607,0.0048394,3099.7,3099.6,1.5092]
[1765645576004,0.7140394,3099.7,3099.6,1.5092]
[1765645576206,1.4561394,3099.7,3099.6,0.7651]
[1765645576405,1.4513,3099.6,3099.5,0.4422]
[1765645576799,0.7092,3099.6,3099.5,1.9514]
[1765645577000,3.9218394,3099.7,3099.6,1.5092]
[1765645577205,1.4513,3099.6,3099.5,0.4422]
[1765645577914,1.4513,3099.6,3099.5,1.2073]
[1765645578317,1.4513,3099.6,3099.5,0.4422]
[1765645578708,1.4513,3099.6,3099.5,1.2073]
[1765645579210,1.4513,3099.6,3099.5,1.9514]
[1765645580116,0.7092,3099.6,3099.5,1.9514]
[1765645580815,14.0776394,3099.7,3099.6,1.5092]
[1765645581116,14.7868394,3099.7,3099.6,1.5092]
[1765645582212,15.5289394,3099.7,3099.6,1.5092]
[1765645582511,14.7868394,3099.7,3099.6,1.5092]
[1765645582918,11.5790394,3099.7,3099.6,1.5092]
[1765645583719,10.8698394,3099.7,3099.6,1.5092]
[1765645584410,0.0048394,3099.7,3099.6,1.5092]
[1765645586124,3.21089363,3100.1,3100.0,1.8657]
[1765645587012,3.95649363,3100.1,3100.0,1.8657]
[1765645587619,4.66649363,3100.1,3100.0,1.8657]
[1765645588319,1.45869363,3100.1,3100.0,1.8657]
[1765645590630,1.45869363,3100.1,3100.0,1.1532]
[1765645593335,1.4556,3099.8,3099.7,4.6521394]
[1765645593929,0.7456,3099.8,3099.7,4.6521394]
[1765645594532,1.45869363,3100.1,3100.0,1.8657]
[1765645594825,0.74869363,3100.1,3100.0,1.8657]
[1765645595426,0.00309363,3100.1,3100.0,1.8657]
[1765645595828,0.74869363,3100.1,3100.0,1.8657]
[1765645596728,0.00309363,3100.1,3100.0,1.8657]
[1765645597835,0.74869363,3100.1,3100.0,1.8657]
[1765645598337,1.45869363,3100.1,3100.0,1.8657]
[1765645599136,1.45869363,3100.1,3100.0,1.1532]
[1765645599330,1.4556,3099.8,3099.7,4.6521394]
[1765645599836,1.4556,3099.8,3099.7,0.7318394]
[1765645600031,1.4556,3099.8,3099.7,0.0048394]
[1765645601334,0.7456,3099.8,3099.7,1.4443394]
[1765645601539,1.4556,3099.8,3099.7,1.4443394]
[1765645603540,1.4556,3099.8,3099.7,0.7318394]
[1765645604238,1.4556,3099.8,3099.7,0.0048394]
[1765645604538,1.4556,3099.8,3099.7,0.7318394]
[1765645605234,3.21089363,3100.1,3099.7,1.4443394]
[1765645605441,12.53,3100.0,3099.9,1.4395]
[1765645605741,13.9856,3100.0,3099.9,1.4395]
[1765645606038,1.4556,3099.8,3099.7,1.4443394]
[1765645606341,1.4556,3099.8,3099.7,0.7318394]
[1765645607338,1.4556,3099.8,3099.7,0.0048394]
[1765645608142,1.4556,3099.8,3099.7,0.7318394]
[1765645608442,1.4556,3099.8,3099.7,0.0048394]
[1765645613051,12.8338,3100.0,3099.1,0.16364926]
[1765645613052,1.4556,3099.2,3099.1,1.44183926]
[1765645613247,0.7456,3099.2,3099.1,1.44183926]
[1765645614341,3.9534,3099.4,3099.3,1.4395]
[1765645614547,4.6634,3099.4,3099.3,1.4395]
[1765645614848,3.2078,3099.4,3099.3,1.4395]
[1765645617544,19.6364,3099.7,3099.6,0.7397]
[1765645617945,19.6364,3099.7,3099.6,1.4737]
[1765645619449,16.4286,3099.7,3099.6,1.4737]
[1765645619748,19.6364,3099.7,3099.6,1.4737]
[1765645621150,19.6364,3099.7,3099.6,0.7397]
[1765645622252,4.6704,3099.7,3099.6,1.4737]
[1765645622450,19.6374,3099.7,3099.6,1.4737]
[1765645623549,3.9667,3099.7,3099.6,1.4737]
[1765645623939,4.6704,3099.7,3099.6,1.4737]
[1765645624748,4.6951,3099.7,3099.6,1.4737]
[1765645625448,3.9667,3099.7,3099.6,1.4737]
[1765645625846,3.2078,3099.7,3099.6,1.4737]
[1765645626255,1.4547,3099.6,3099.5,0.4203]
[1765645626553,1.4547,3099.6,3099.5,1.1465]
[1765645626747,1.4547,3099.6,3099.5,1.8518]
[1765645627556,0.7263,3099.6,3099.5,1.8518]
[1765645627955,3.9341,3099.7,3099.6,1.4315]
[1765645628560,3.2078,3099.7,3099.6,1.4315]
[1765645630469,3.9341,3099.7,3099.6,1.4315]
[1765645631357,3.2078,3099.7,3099.6,1.4315]
[1765645632368,0.7263,3099.7,3099.6,1.4315]
[1765645632971,1.4547,3099.7,3099.6,1.4315]
[1765645633156,3.2078,3099.9,3099.8,1.4315]
[1765645634455,3.9341,3099.9,3099.8,1.4315]
[1765645634654,4.6625,3099.9,3099.8,1.4315]
[1765645635667,4.6625,3099.9,3099.8,0.7262]
[1765645635868,4.6625,3099.9,3099.8,1.4315]